Workbook

Sheet description
B3: SUPPORTING INFORMATION FOR:
B5: Louvet, J., Quik, J.T.K., Boulay A.-M. (under review). Regionalized Characterization Factors for Microplastics Emissions in Life Cycle Assessment Considering Multimedia Fate Modelling
B9: Description:
B10: Supplementary information for the information linked to the calculation of the Fate: Fate Factors (FF), Specific Surface Degradation Rates (SSDR), Sedimentation Rates, Regionalization parameters (except Species Density Fractions, SDF)
B14: Table of content:
B16: 1.1 Fate Factors calculated (in days)
B17: 2.1 SSDRs for water compartments
B18: 2.2 SSDRs for sediment compartments
B19: 2.3 SSDRs for soil compartments
B20: 3.1 Default sedimentation rates for low-density polymers
B21: 4.1. Regionalization parameters
B22: 4.2. Calculations of regionalized depth and surface area for lake and river
B23: 5.1. Polymer parameters
B24: 6. References
B26: Legend:
B27: a | C27: air | F27: C | G27: Continental scale
B28: lw | C28: lake water | F28: G | G28: Global scale
B29: rw | C29: river water
B30: sw | C30: sea water
B31: lw_sed | C31: lake water sediment
B32: rw_sed | C32: river water sediment
B33: sw_sed | C33: sea water sediment
B34: nat_soil | C34: natural soil
B35: agr_soil | C35: agricultural soil

Sheet 1.1.FFs
A1: region | B1: polymer | C1: size | D1: emission compartment | E1: receiving compartment | F1: FF [day]
A2: Central_Asia | B2: PLA | C2: 5000um | D2: sw_sed_C | E2: sw_sed_C | F2: 4.22E+04
A3: Northern_regions | B3: PLA | C3: 5000um | D3: sw_sed_C | E3: sw_sed_C | F3: 4.22E+04
A4: Europe | B4: PLA | C4: 5000um | D4: sw_sed_C | E4: sw_sed_C | F4: 4.22E+04
A5: Africa_Middle_East | B5: PLA | C5: 5000um | D5: sw_sed_C | E5: sw_sed_C | F5: 4.22E+04
A6: North_America | B6: PLA | C6: 5000um | D6: sw_sed_C | E6: sw_sed_C | F6: 4.22E+04
A7: Oceania | B7: PLA | C7: 5000um | D7: sw_sed_C | E7: sw_sed_C | F7: 4.22E+04
A8: Southeast_Asia | B8: PLA | C8: 5000um | D8: sw_sed_C | E8: sw_sed_C | F8: 4.22E+04
A9: Latin_America | B9: PLA | C9: 5000um | D9: sw_sed_C | E9: sw_sed_C | F9: 4.22E+04
A10: North_America | B10: EPS | C10: 1um | D10: lw_C | E10: a_G | F10: 0.00E+00
A11: North_America | B11: EPS | C11: 1um | D11: lw_C | E11: lw_G | F11: 0.00E+00
A12: North_America | B12: EPS | C12: 1um | D12: lw_C | E12: rw_G | F12: 0.00E+00
A13: North_America | B13: EPS | C13: 1um | D13: lw_C | E13: lw_sed_G | F13: 0.00E+00
A14: North_America | B14: EPS | C14: 1um | D14: lw_C | E14: rw_sed_G | F14: 0.00E+00
A15: North_America | B15: EPS | C15: 1um | D15: lw_C | E15: nat_soil_G | F15: 0.00E+00
A16: North_America | B16: EPS | C16: 1um | D16: lw_C | E16: agr_soil_G | F16: 0.00E+00
A17: North_America | B17: EPS | C17: 1um | D17: rw_C | E17: a_G | F17: 0.00E+00
A18: North_America | B18: EPS | C18: 1um | D18: rw_C | E18: lw_G | F18: 0.00E+00
A19: North_America | B19: EPS | C19: 1um | D19: rw_C | E19: rw_G | F19: 0.00E+00
A20: North_America | B20: EPS | C20: 1um | D20: rw_C | E20: lw_sed_G | F20: 0.00E+00
A21: North_America | B21: EPS | C21: 1um | D21: rw_C | E21: rw_sed_G | F21: 0.00E+00
A22: North_America | B22: EPS | C22: 1um | D22: rw_C | E22: nat_soil_G | F22: 0.00E+00
A23: North_America | B23: EPS | C23: 1um | D23: rw_C | E23: agr_soil_G | F23: 0.00E+00
A24: North_America | B24: EPS | C24: 1um | D24: sw_C | E24: a_G | F24: 0.00E+00
A25: North_America | B25: EPS | C25: 1um | D25: sw_C | E25: lw_G | F25: 0.00E+00
A26: North_America | B26: EPS | C26: 1um | D26: sw_C | E26: rw_G | F26: 0.00E+00
A27: Central_Asia | B27: PLA | C27: 1000um | D27: sw_sed_C | E27: sw_sed_C | F27: 4.21E+04
A28: Northern_regions | B28: PLA | C28: 1000um | D28: sw_sed_C | E28: sw_sed_C | F28: 4.21E+04
A29: North_America | B29: EPS | C29: 1um | D29: sw_C | E29: lw_sed_G | F29: 0.00E+00
A30: North_America | B30: EPS | C30: 1um | D30: sw_C | E30: rw_sed_G | F30: 0.00E+00
A31: North_America | B31: EPS | C31: 1um | D31: sw_C | E31: nat_soil_G | F31: 0.00E+00
A32: North_America | B32: EPS | C32: 1um | D32: sw_C | E32: agr_soil_G | F32: 0.00E+00
A33: North_America | B33: EPS | C33: 1um | D33: nat_soil_C | E33: a_G | F33: 0.00E+00
A34: North_America | B34: EPS | C34: 1um | D34: nat_soil_C | E34: lw_G | F34: 0.00E+00
A35: North_America | B35: EPS | C35: 1um | D35: nat_soil_C | E35: rw_G | F35: 0.00E+00
A36: North_America | B36: EPS | C36: 1um | D36: nat_soil_C | E36: lw_sed_G | F36: 0.00E+00
A37: North_America | B37: EPS | C37: 1um | D37: nat_soil_C | E37: rw_sed_G | F37: 0.00E+00
A38: Europe | B38: PLA | C38: 1000um | D38: sw_sed_C | E38: sw_sed_C | F38: 4.21E+04
A39: Africa_Middle_East | B39: PLA | C39: 1000um | D39: sw_sed_C | E39: sw_sed_C | F39: 4.21E+04
A40: North_America | B40: PLA | C40: 1000um | D40: sw_sed_C | E40: sw_sed_C | F40: 4.21E+04
A41: Oceania | B41: PLA | C41: 1000um | D41: sw_sed_C | E41: sw_sed_C | F41: 4.21E+04
A42: Southeast_Asia | B42: PLA | C42: 1000um | D42: sw_sed_C | E42: sw_sed_C | F42: 4.21E+04
A43: Latin_America | B43: PLA | C43: 1000um | D43: sw_sed_C | E43: sw_sed_C | F43: 4.21E+04
A44: North_America | B44: EPS | C44: 1um | D44: nat_soil_C | E44: nat_soil_G | F44: 0.00E+00
A45: North_America | B45: EPS | C45: 1um | D45: nat_soil_C | E45: agr_soil_G | F45: 0.00E+00
A46: North_America | B46: EPS | C46: 1um | D46: agr_soil_C | E46: a_G | F46: 0.00E+00
A47: North_America | B47: EPS | C47: 1um | D47: agr_soil_C | E47: lw_G | F47: 0.00E+00
A48: North_America | B48: EPS | C48: 1um | D48: agr_soil_C | E48: rw_G | F48: 0.00E+00
A49: North_America | B49: EPS | C49: 1um | D49: agr_soil_C | E49: lw_sed_G | F49: 0.00E+00
A50: North_America | B50: EPS | C50: 1um | D50: agr_soil_C | E50: rw_sed_G | F50: 0.00E+00
A51: North_America | B51: EPS | C51: 1um | D51: agr_soil_C | E51: nat_soil_G | F51: 0.00E+00
A52: North_America | B52: EPS | C52: 1um | D52: agr_soil_C | E52: agr_soil_G | F52: 0.00E+00
A53: North_America | B53: EPS | C53: 10um | D53: a_C | E53: lw_sed_G | F53: 0.00E+00
A54: North_America | B54: EPS | C54: 10um | D54: a_C | E54: rw_sed_G | F54: 0.00E+00
A55: North_America | B55: EPS | C55: 10um | D55: lw_C | E55: a_G | F55: 0.00E+00
A56: North_America | B56: EPS | C56: 10um | D56: lw_C | E56: lw_G | F56: 0.00E+00
A57: North_America | B57: EPS | C57: 10um | D57: lw_C | E57: rw_G | F57: 0.00E+00
A58: North_America | B58: EPS | C58: 10um | D58: lw_C | E58: lw_sed_G | F58: 0.00E+00
A59: North_America | B59: EPS | C59: 10um | D59: lw_C | E59: rw_sed_G | F59: 0.00E+00
A60: North_America | B60: EPS | C60: 10um | D60: lw_C | E60: nat_soil_G | F60: 0.00E+00
A61: Central_Asia | B61: PVC | C61: 5000um | D61: sw_sed_C | E61: sw_sed_C | F61: 4.21E+04
A62: Northern_regions | B62: PVC | C62: 5000um | D62: sw_sed_C | E62: sw_sed_C | F62: 4.21E+04
A63: Europe | B63: PVC | C63: 5000um | D63: sw_sed_C | E63: sw_sed_C | F63: 4.21E+04
A64: Africa_Middle_East | B64: PVC | C64: 5000um | D64: sw_sed_C | E64: sw_sed_C | F64: 4.21E+04
A65: North_America | B65: EPS | C65: 10um | D65: lw_C | E65: agr_soil_G | F65: 0.00E+00
A66: North_America | B66: EPS | C66: 10um | D66: rw_C | E66: a_G | F66: 0.00E+00
A67: North_America | B67: EPS | C67: 10um | D67: rw_C | E67: lw_G | F67: 0.00E+00
A68: North_America | B68: EPS | C68: 10um | D68: rw_C | E68: rw_G | F68: 0.00E+00
A69: North_America | B69: EPS | C69: 10um | D69: rw_C | E69: lw_sed_G | F69: 0.00E+00
A70: North_America | B70: EPS | C70: 10um | D70: rw_C | E70: rw_sed_G | F70: 0.00E+00
A71: North_America | B71: EPS | C71: 10um | D71: rw_C | E71: nat_soil_G | F71: 0.00E+00
A72: North_America | B72: EPS | C72: 10um | D72: rw_C | E72: agr_soil_G | F72: 0.00E+00
A73: North_America | B73: EPS | C73: 10um | D73: sw_C | E73: a_G | F73: 0.00E+00
A74: North_America | B74: PVC | C74: 5000um | D74: sw_sed_C | E74: sw_sed_C | F74: 4.21E+04
A75: Oceania | B75: PVC | C75: 5000um | D75: sw_sed_C | E75: sw_sed_C | F75: 4.21E+04
A76: Southeast_Asia | B76: PVC | C76: 5000um | D76: sw_sed_C | E76: sw_sed_C | F76: 4.21E+04
A77: Latin_America | B77: PVC | C77: 5000um | D77: sw_sed_C | E77: sw_sed_C | F77: 4.21E+04
A78: North_America | B78: EPS | C78: 10um | D78: sw_C | E78: lw_G | F78: 0.00E+00
A79: North_America | B79: EPS | C79: 10um | D79: sw_C | E79: rw_G | F79: 0.00E+00
A80: North_America | B80: EPS | C80: 10um | D80: sw_C | E80: lw_sed_G | F80: 0.00E+00
A81: North_America | B81: EPS | C81: 10um | D81: sw_C | E81: rw_sed_G | F81: 0.00E+00
A82: North_America | B82: EPS | C82: 10um | D82: sw_C | E82: nat_soil_G | F82: 0.00E+00
A83: North_America | B83: EPS | C83: 1um | D83: lw_sed_C | E83: a_G | F83: 0.00E+00
A84: North_America | B84: EPS | C84: 1um | D84: lw_sed_C | E84: lw_G | F84: 0.00E+00
A85: North_America | B85: EPS | C85: 1um | D85: lw_sed_C | E85: rw_G | F85: 0.00E+00
A86: North_America | B86: EPS | C86: 1um | D86: lw_sed_C | E86: sw_G | F86: 0.00E+00
A87: North_America | B87: EPS | C87: 1um | D87: lw_sed_C | E87: lw_sed_G | F87: 0.00E+00
A88: North_America | B88: EPS | C88: 1um | D88: lw_sed_C | E88: rw_sed_G | F88: 0.00E+00
A89: North_America | B89: EPS | C89: 1um | D89: lw_sed_C | E89: sw_sed_G | F89: 0.00E+00
A90: North_America | B90: EPS | C90: 1um | D90: lw_sed_C | E90: nat_soil_G | F90: 0.00E+00
A91: North_America | B91: EPS | C91: 1um | D91: lw_sed_C | E91: agr_soil_G | F91: 0.00E+00
A92: North_America | B92: EPS | C92: 10um | D92: sw_C | E92: agr_soil_G | F92: 0.00E+00
A93: North_America | B93: EPS | C93: 10um | D93: nat_soil_C | E93: a_G | F93: 0.00E+00
A94: North_America | B94: EPS | C94: 10um | D94: nat_soil_C | E94: lw_G | F94: 0.00E+00
A95: Central_Asia | B95: PS | C95: 5000um | D95: sw_sed_C | E95: sw_sed_C | F95: 4.20E+04
A96: Northern_regions | B96: PS | C96: 5000um | D96: sw_sed_C | E96: sw_sed_C | F96: 4.20E+04
A97: Europe | B97: PS | C97: 5000um | D97: sw_sed_C | E97: sw_sed_C | F97: 4.20E+04
A98: Africa_Middle_East | B98: PS | C98: 5000um | D98: sw_sed_C | E98: sw_sed_C | F98: 4.20E+04
A99: North_America | B99: PS | C99: 5000um | D99: sw_sed_C | E99: sw_sed_C | F99: 4.20E+04
A100: Oceania | B100: PS | C100: 5000um | D100: sw_sed_C | E100: sw_sed_C | F100: 4.20E+04
A101: North_America | B101: EPS | C101: 1um | D101: rw_sed_C | E101: a_G | F101: 0.00E+00
A102: North_America | B102: EPS | C102: 1um | D102: rw_sed_C | E102: lw_G | F102: 0.00E+00
A103: North_America | B103: EPS | C103: 1um | D103: rw_sed_C | E103: rw_G | F103: 0.00E+00
A104: North_America | B104: EPS | C104: 1um | D104: rw_sed_C | E104: sw_G | F104: 5.51E-01
A105: North_America | B105: EPS | C105: 1um | D105: rw_sed_C | E105: lw_sed_G | F105: 0.00E+00
A106: North_America | B106: EPS | C106: 1um | D106: rw_sed_C | E106: rw_sed_G | F106: 0.00E+00
A107: North_America | B107: EPS | C107: 1um | D107: rw_sed_C | E107: sw_sed_G | F107: 1.71E-03
A108: North_America | B108: EPS | C108: 1um | D108: rw_sed_C | E108: nat_soil_G | F108: 0.00E+00
A109: North_America | B109: EPS | C109: 1um | D109: rw_sed_C | E109: agr_soil_G | F109: 0.00E+00
A110: Southeast_Asia | B110: PS | C110: 5000um | D110: sw_sed_C | E110: sw_sed_C | F110: 4.20E+04
A111: Latin_America | B111: PS | C111: 5000um | D111: sw_sed_C | E111: sw_sed_C | F111: 4.20E+04
A112: North_America | B112: EPS | C112: 10um | D112: nat_soil_C | E112: rw_G | F112: 0.00E+00
A113: North_America | B113: EPS | C113: 10um | D113: nat_soil_C | E113: lw_sed_G | F113: 0.00E+00
A114: North_America | B114: EPS | C114: 10um | D114: nat_soil_C | E114: rw_sed_G | F114: 0.00E+00
A115: North_America | B115: EPS | C115: 10um | D115: nat_soil_C | E115: nat_soil_G | F115: 0.00E+00
A116: North_America | B116: EPS | C116: 10um | D116: nat_soil_C | E116: agr_soil_G | F116: 0.00E+00
A117: North_America | B117: EPS | C117: 10um | D117: agr_soil_C | E117: a_G | F117: 0.00E+00
A118: North_America | B118: EPS | C118: 10um | D118: agr_soil_C | E118: lw_G | F118: 0.00E+00
A119: North_America | B119: EPS | C119: 1um | D119: sw_sed_C | E119: a_G | F119: 0.00E+00
A120: North_America | B120: EPS | C120: 1um | D120: sw_sed_C | E120: lw_G | F120: 0.00E+00
A121: North_America | B121: EPS | C121: 1um | D121: sw_sed_C | E121: rw_G | F121: 0.00E+00
A122: North_America | B122: EPS | C122: 1um | D122: sw_sed_C | E122: sw_G | F122: 7.26E-01
A123: North_America | B123: EPS | C123: 1um | D123: sw_sed_C | E123: lw_sed_G | F123: 0.00E+00
A124: North_America | B124: EPS | C124: 1um | D124: sw_sed_C | E124: rw_sed_G | F124: 0.00E+00
A125: North_America | B125: EPS | C125: 1um | D125: sw_sed_C | E125: sw_sed_G | F125: 2.25E-03
A126: North_America | B126: EPS | C126: 1um | D126: sw_sed_C | E126: nat_soil_G | F126: 0.00E+00
A127: North_America | B127: EPS | C127: 1um | D127: sw_sed_C | E127: agr_soil_G | F127: 0.00E+00
A128: North_America | B128: EPS | C128: 10um | D128: agr_soil_C | E128: rw_G | F128: 0.00E+00
A129: Central_Asia | B129: PVC | C129: 1000um | D129: sw_sed_C | E129: sw_sed_C | F129: 4.18E+04
A130: Northern_regions | B130: PVC | C130: 1000um | D130: sw_sed_C | E130: sw_sed_C | F130: 4.18E+04
A131: Europe | B131: PVC | C131: 1000um | D131: sw_sed_C | E131: sw_sed_C | F131: 4.18E+04
A132: Africa_Middle_East | B132: PVC | C132: 1000um | D132: sw_sed_C | E132: sw_sed_C | F132: 4.18E+04
A133: North_America | B133: PVC | C133: 1000um | D133: sw_sed_C | E133: sw_sed_C | F133: 4.18E+04
A134: Oceania | B134: PVC | C134: 1000um | D134: sw_sed_C | E134: sw_sed_C | F134: 4.18E+04
A135: Southeast_Asia | B135: PVC | C135: 1000um | D135: sw_sed_C | E135: sw_sed_C | F135: 4.18E+04
A136: Latin_America | B136: PVC | C136: 1000um | D136: sw_sed_C | E136: sw_sed_C | F136: 4.18E+04
A137: North_America | B137: EPS | C137: 10um | D137: agr_soil_C | E137: lw_sed_G | F137: 0.00E+00
A138: North_America | B138: EPS | C138: 10um | D138: agr_soil_C | E138: rw_sed_G | F138: 0.00E+00
A139: North_America | B139: EPS | C139: 10um | D139: agr_soil_C | E139: nat_soil_G | F139: 0.00E+00
A140: North_America | B140: EPS | C140: 10um | D140: agr_soil_C | E140: agr_soil_G | F140: 0.00E+00
A141: North_America | B141: EPS | C141: 100um | D141: a_C | E141: lw_sed_G | F141: 0.00E+00
A142: North_America | B142: EPS | C142: 100um | D142: a_C | E142: rw_sed_G | F142: 0.00E+00
A143: North_America | B143: EPS | C143: 100um | D143: lw_C | E143: a_G | F143: 0.00E+00
A144: North_America | B144: EPS | C144: 100um | D144: lw_C | E144: lw_G | F144: 0.00E+00
A145: North_America | B145: EPS | C145: 100um | D145: lw_C | E145: rw_G | F145: 0.00E+00
A146: North_America | B146: EPS | C146: 100um | D146: lw_C | E146: lw_sed_G | F146: 0.00E+00
A147: North_America | B147: EPS | C147: 100um | D147: lw_C | E147: rw_sed_G | F147: 0.00E+00
A148: North_America | B148: EPS | C148: 100um | D148: lw_C | E148: nat_soil_G | F148: 0.00E+00
A149: North_America | B149: EPS | C149: 100um | D149: lw_C | E149: agr_soil_G | F149: 0.00E+00
A150: North_America | B150: EPS | C150: 100um | D150: rw_C | E150: a_G | F150: 0.00E+00
A151: North_America | B151: EPS | C151: 100um | D151: rw_C | E151: lw_G | F151: 0.00E+00
A152: North_America | B152: EPS | C152: 100um | D152: rw_C | E152: rw_G | F152: 0.00E+00
A153: North_America | B153: EPS | C153: 100um | D153: rw_C | E153: lw_sed_G | F153: 0.00E+00
A154: World | B154: PLA | C154: 5000um | D154: sw_sed_C | E154: sw_sed_C | F154: 4.18E+04
A155: North_America | B155: EPS | C155: 100um | D155: rw_C | E155: rw_sed_G | F155: 0.00E+00
A156: North_America | B156: EPS | C156: 100um | D156: rw_C | E156: nat_soil_G | F156: 0.00E+00
A157: North_America | B157: EPS | C157: 100um | D157: rw_C | E157: agr_soil_G | F157: 0.00E+00
A158: North_America | B158: EPS | C158: 100um | D158: sw_C | E158: a_G | F158: 0.00E+00
A159: North_America | B159: EPS | C159: 100um | D159: sw_C | E159: lw_G | F159: 0.00E+00
A160: North_America | B160: EPS | C160: 100um | D160: sw_C | E160: rw_G | F160: 0.00E+00
A161: North_America | B161: EPS | C161: 100um | D161: sw_C | E161: lw_sed_G | F161: 0.00E+00
A162: North_America | B162: EPS | C162: 100um | D162: sw_C | E162: rw_sed_G | F162: 0.00E+00
A163: North_America | B163: EPS | C163: 100um | D163: sw_C | E163: nat_soil_G | F163: 0.00E+00
A164: North_America | B164: EPS | C164: 100um | D164: sw_C | E164: agr_soil_G | F164: 0.00E+00
A165: World | B165: PLA | C165: 1000um | D165: sw_sed_C | E165: sw_sed_C | F165: 4.17E+04
A166: North_America | B166: EPS | C166: 100um | D166: nat_soil_C | E166: a_G | F166: 0.00E+00
A167: World | B167: PVC | C167: 5000um | D167: sw_sed_C | E167: sw_sed_C | F167: 4.17E+04
A168: North_America | B168: EPS | C168: 100um | D168: nat_soil_C | E168: lw_G | F168: 0.00E+00
A169: World | B169: PS | C169: 5000um | D169: sw_sed_C | E169: sw_sed_C | F169: 4.15E+04
A170: North_America | B170: EPS | C170: 100um | D170: nat_soil_C | E170: rw_G | F170: 0.00E+00
A171: World | B171: PVC | C171: 1000um | D171: sw_sed_C | E171: sw_sed_C | F171: 4.14E+04
A172: North_America | B172: EPS | C172: 100um | D172: nat_soil_C | E172: lw_sed_G | F172: 0.00E+00
A173: North_America | B173: EPS | C173: 1um | D173: a_G | E173: a_G | F173: 9.28E+00
A174: North_America | B174: EPS | C174: 1um | D174: a_G | E174: lw_G | F174: 1.20E+00
A175: North_America | B175: EPS | C175: 1um | D175: a_G | E175: rw_G | F175: 1.15E-01
A176: North_America | B176: EPS | C176: 1um | D176: a_G | E176: sw_G | F176: 8.79E+01
A177: North_America | B177: EPS | C177: 1um | D177: a_G | E177: lw_sed_G | F177: 3.51E-03
A178: North_America | B178: EPS | C178: 1um | D178: a_G | E178: rw_sed_G | F178: 3.33E-02
A179: North_America | B179: EPS | C179: 1um | D179: a_G | E179: sw_sed_G | F179: 2.73E-01
A180: North_America | B180: EPS | C180: 1um | D180: a_G | E180: nat_soil_G | F180: 1.60E+01
A181: North_America | B181: EPS | C181: 1um | D181: a_G | E181: agr_soil_G | F181: 9.56E+00
A182: Central_Asia | B182: PS | C182: 1000um | D182: sw_sed_C | E182: sw_sed_C | F182: 4.10E+04
A183: Northern_regions | B183: PS | C183: 1000um | D183: sw_sed_C | E183: sw_sed_C | F183: 4.10E+04
A184: Europe | B184: PS | C184: 1000um | D184: sw_sed_C | E184: sw_sed_C | F184: 4.10E+04
A185: Africa_Middle_East | B185: PS | C185: 1000um | D185: sw_sed_C | E185: sw_sed_C | F185: 4.10E+04
A186: North_America | B186: PS | C186: 1000um | D186: sw_sed_C | E186: sw_sed_C | F186: 4.10E+04
A187: Oceania | B187: PS | C187: 1000um | D187: sw_sed_C | E187: sw_sed_C | F187: 4.10E+04
A188: Southeast_Asia | B188: PS | C188: 1000um | D188: sw_sed_C | E188: sw_sed_C | F188: 4.10E+04
A189: Latin_America | B189: PS | C189: 1000um | D189: sw_sed_C | E189: sw_sed_C | F189: 4.10E+04
A190: North_America | B190: EPS | C190: 100um | D190: nat_soil_C | E190: rw_sed_G | F190: 0.00E+00
A191: North_America | B191: EPS | C191: 1um | D191: lw_G | E191: a_G | F191: 0.00E+00
A192: North_America | B192: EPS | C192: 1um | D192: lw_G | E192: lw_G | F192: 1.14E+02
A193: North_America | B193: EPS | C193: 1um | D193: lw_G | E193: rw_G | F193: 1.43E+00
A194: North_America | B194: EPS | C194: 1um | D194: lw_G | E194: sw_G | F194: 9.42E-01
A195: North_America | B195: EPS | C195: 1um | D195: lw_G | E195: lw_sed_G | F195: 3.34E-01
A196: North_America | B196: EPS | C196: 1um | D196: lw_G | E196: rw_sed_G | F196: 4.12E-01
A197: North_America | B197: EPS | C197: 1um | D197: lw_G | E197: sw_sed_G | F197: 2.93E-03
A198: North_America | B198: EPS | C198: 1um | D198: lw_G | E198: nat_soil_G | F198: 0.00E+00
A199: North_America | B199: EPS | C199: 1um | D199: lw_G | E199: agr_soil_G | F199: 0.00E+00
A200: North_America | B200: EPS | C200: 100um | D200: nat_soil_C | E200: nat_soil_G | F200: 0.00E+00
... 4300 more rows

Sheet 2.1.SSDR_water
B2: SSDR water
B4: SSDR from Correla-Puertas et al. (2023) and Saadi et al. (under review) are chosen first. When no SSDR was available in Corella-Puertas, the geométric mean was realised between the lower and the upper value found in Maga et al. (2022) following what is done in Corella-Puertas et al. (2023)
B6: Polymer type | C6: SSDR in Corella-Puertas et al. (2023) [µm/year] | D6: SSDR in Saadi et al. (under review) [µm/year] | E6: SSDR in Maga et al. (2022) [µm/year] | F6: Source within Maga et al. (2022) | G6: Chosen SSDR [µm/year] | H6: Chosen SSDR [m/s]
B7: EPS | C7: 0.03 | D7: - | E7: - | F7: - | G7: 0.03 | H7: =(G7*0.000001)/(365*24*3600) -> 9.51E-16
B8: HDPE | C8: 0.1 | D8: - | E8: - | F8: - | G8: 0.1 | H8: 3.17E-15
B9: LDPE | C9: 0.2 | D9: - | E9: - | F9: - | G9: 0.2 | H9: 6.34E-15
B10: PA_Nylon | C10: 3.2 | D10: - | E10: - | F10: - | G10: 3.2 | H10: 1.01E-13
B11: PET | C11: 0.3 | D11: - | E11: - | F11: - | G11: 0.3 | H11: 9.51E-15
B12: PHA | C12: 112.62 | D12: - | E12: - | F12: - | G12: 112.62 | H12: 3.57E-12
B13: PLA | C13: 0.09 | D13: - | E13: - | F13: - | G13: 0.09 | H13: 2.85E-15
B14: PP | C14: 1.23 | D14: - | E14: - | F14: - | G14: 1.23 | H14: 3.90E-14
B15: PS | C15: 0.03 | D15: - | E15: - | F15: - | G15: 0.03 | H15: 9.51E-16
B16: PVC | C16: 0.01 | D16: - | E16: - | F16: - | G16: 0.01 | H16: 3.17E-16
B17: TRWP | C17: 0.21 | D17: - | E17: - | F17: - | G17: 0.21 | H17: 6.66E-15
B18: starch_blend | C18: - | D18: - | E18: 101.29 | F18: Tosin et al. (2012) | G18: 101.29 | H18: 3.21E-12
B19: PBAT | C19: - | D19: - | E19: 10.27 | F19: Eubeler (2010) | G19: =GEOMEAN(E19,E20) -> 11.7529358 | H19: =(G19*0.000001)/(365*24*3600) -> 3.73E-13
E20: 13.45 | F20: Eubeler (2010)
B21: PAN | C21: - | D21: 0.001 | E21: - | F21: - | G21: =D21 -> 0.001 | H21: =(G21*0.000001)/(365*24*3600) -> 3.17E-17

Sheet 2.2.SSDR_sediment
B2: SSDR sediment
B4: When SSDRs are available for the sediment in Maga et al. (2022), the geometric mean is realised between the upper and the lower value. When no SSDR is available for the sediment, SSDRs for water are chosen instead.
B6: Polymer type | C6: SSDR in Maga et al. (2022) [µm/year] | D6: Source within Maga et al. (2022) | E6: SSDR for water [µm/year] | F6: Chosen SSDR [µm/year] | G6: Chosen SSDR [m/s]
B7: EPS | C7: - | D7: - | E7: ='2.1.SSDR_water'!G7 -> 0.03 | F7: =E7 -> 0.03 | G7: =(F7*0.000001)/(365*24*3600) -> 9.512937595e-16
B8: HDPE | C8: - | D8: - | E8: ='2.1.SSDR_water'!G8 -> 0.1 | F8: =E8 -> 0.1 | G8: =(F8*0.000001)/(365*24*3600) -> 3.170979198e-15
B9: LDPE | C9: 0.67 | D9: Tosin et al. (2016) | E9: - | F9: =GEOMEAN(C9,C12) -> 0.70 | G9: =(F9*0.000001)/(24*365*3600) -> 2.232783707e-14
C10: 0.70 | D10: Tosin et al. (2016)
C11: 0.72 | D11: Tosin et al. (2016)
C12: 0.74 | D12: Tosin et al. (2016)
B13: PA_Nylon | C13: - | D13: - | E13: ='2.1.SSDR_water'!G10 -> 3.2 | F13: =E13 -> 3.2 | G13: =(F13*0.000001)/(365*24*3600) -> 1.014713343e-13
B14: PET | C14: - | D14: - | E14: ='2.1.SSDR_water'!G11 -> 0.3 | F14: =E14 -> 0.3 | G14: =(F14*0.000001)/(365*24*3600) -> 9.512937595e-15
B15: PHA | C15: 0.23 | D15: Lott et al. (2020) | E15: - | F15: =GEOMEAN(C15,C18) -> 6.18 | G15: =(F15*0.000001)/(365*24*3600) -> 1.958815774e-13
C16: 12.36 | D16: Eich et al. (2019)
C17: 148.34 | D17: Lott et al. (2020)
C18: 165.91 | D18: Eich et al. (2019)
B19: PLA | C19: 0.0011 | D19: Artu & Lecerf (2019) | E19: - | F19: =C19 -> 0.001 | G19: =(F19*0.000001)/(365*24*3600) -> 3.488077118e-17
B20: PP | C20: - | D20: - | E20: ='2.1.SSDR_water'!G13 -> 0.09 | F20: =E20 -> 0.09 | G20: =(F20*0.000001)/(365*24*3600) -> 2.853881279e-15
B21: PS | C21: - | D21: - | E21: ='2.1.SSDR_water'!G15 -> 0.03 | F21: =E21 -> 0.03 | G21: =(F21*0.000001)/(365*24*3600) -> 9.512937595e-16
B22: PVC | C22: - | D22: - | E22: ='2.1.SSDR_water'!G16 -> 0.01 | F22: 0.01 | G22: 3.170979198e-16
B23: TRWP | C23: - | D23: - | E23: ='2.1.SSDR_water'!G17 -> 0.21 | F23: 0.21 | G23: 6.659056317e-15
B24: starch_blend | C24: - | D24: - | E24: ='2.1.SSDR_water'!G18 -> 101.29 | F24: 101.29 | G24: 3.21188483e-12
B25: PBAT | C25: - | D25: - | E25: ='2.1.SSDR_water'!G19 -> 11.7529358 | F25: 11.7529358 | G25: 3.726831495e-13
B26: PAN | C26: - | D26: - | E26: ='2.1.SSDR_water'!G21 -> 0.001 | F26: 0.001 | G26: =(F26*0.000001)/(365*24*3600) -> 3.170979198e-17

Sheet 2.3.SSDR_soil
B2: SSDR soil
B4: When SSDRs are available for the soil in Maga et al. (2022) or Chamas et al. (2020), the geometric mean is realised between the upper and the lower value. When no SSDR is available for the soil or SSDR is 0, SSDRs for water are chosen instead.
B6: Polymer type | C6: SSDR in Maga et al. (2022) [µm/year] | D6: Source within Maga et al. (2022) | E6: SSDR in Chamas et al. (2020) | F6: SSDR for water [µm/year] | G6: Chosen SSDR [µm/year] | H6: Chosen SSDR [m/s]
B7: EPS | C7: - | D7: - | E7: - | F7: ='2.1.SSDR_water'!G7 -> 0.03 | G7: =F7 -> 0.03 | H7: =(G7*0.000001)/(365*24*3600) -> 9.51E-16
B8: HDPE | C8: - | D8: - | E8: 1 | F8: - | G8: =GEOMEAN(E8,E11) -> 1.14 | H8: =(G8*0.000001)/(365*24*3600) -> 3.62E-14
E9: 1
E10: 1.3
E11: 1.3
B12: LDPE | C12: - | D12: - | E12: 11 | F12: - | G12: =GEOMEAN(E12,E13) -> 15.56 | H12: =(G12*0.000001)/(24*365*3600) -> 4.93E-13
E13: 22
B14: PA_Nylon | C14: - | D14: - | E14: - | F14: ='2.1.SSDR_water'!G10 -> 3.2 | G14: =F14 -> 3.2 | H14: =(G14*0.000001)/(365*24*3600) -> 1.01E-13
B15: PET | C15: 0.21 | D15: Mohammadian et al. (1991) | E15: 0 | F15: - | G15: =GEOMEAN(C15,C17) -> 0.59 | H15: =(G15*0.000001)/(365*24*3600) -> 1.88E-14
C16: 0.42 | D16: Allen et al. (1994)
C17: 1.67 | D17: Edge et al. (1991)
B18: PHA | C18: 912.5 | D18: Wu (2014) | E18: - | F18: - | G18: =GEOMEAN(C18,C19) -> 1194.74 | H18: =(G18*0.000001)/(365*24*3600) -> 3.79E-11
C19: 1564.29 | D19: KANEKA Corporation (2014)
B20: PLA | C20: 78.69 | D20: Adhikari et al. (2016) | E20: - | F20: - | G20: =GEOMEAN(C20,C21) -> 121.05 | H20: =(G20*0.000001)/(365*24*3600) -> 3.84E-12
C21: 186.22 | D21: Wu (2012)
B22: PP | C22: 0.3 | D22: Yabannavar, Bartha (1994) | E22: 0.51 | F22: - | G22: =GEOMEAN(C22,C23) -> 0.69 | H22: =(G22*0.000001)/(365*24*3600) -> 2.20E-14
C23: 1.6 | D23: Yabannavar, Bartha (1994)
B24: PS | C24: - | D24: - | E24: 0 | F24: ='2.1.SSDR_water'!G15 -> 0.03 | G24: =F24 -> 0.03 | H24: =(G24*0.000001)/(365*24*3600) -> 9.51E-16
B25: PVC | C25: - | D25: - | E25: 0 | F25: ='2.1.SSDR_water'!G16 -> 0.01 | G25: =F25 -> 0.01 | H25: 3.17E-16
B26: TRWP | C26: - | D26: - | E26: - | F26: ='2.1.SSDR_water'!G17 -> 0.21 | G26: =F26 -> 0.21 | H26: 6.66E-15
B27: starch_blend | C27: 42.74 | D27: Arcos-Hernandez et al. (2012) | E27: - | F27: - | G27: =GEOMEAN(C27,C28) -> 330.58 | H27: =(G27*0.000001)/(365*24*3600) -> 1.05E-11
C28: 2556.9 | D28: Mohee et al. (2008)
B29: PBAT | C29: 1.96 | D29: Wang et al. 2015 | E29: - | F29: - | G29: =GEOMEAN(C29,C30) -> 5.42 | H29: =(G29*0.000001)/(365*24*3600) -> 1.72E-13
C30: 15 | D30: Feuilloley et al. 2005
B31: PAN | C31: - | D31: - | E31: - | F31: ='2.1.SSDR_water'!G21 -> 0.001 | G31: =F31 -> 0.001 | H31: =(G31*0.000001)/(365*24*3600) -> 3.17E-17

Sheet 3.1. Sed_rates
B2: Default sedimentation rates for low-density polymers
B4: Default sedimentation rates are taken from Corella-Puertas et al. (2023)
B6: polymer type | C6: default sed rate [s-1]
B7: EPS | C7: 8.35E-13
B8: PP | C8: 5.67E-10
B9: HDPE | C9: 5.67E-10
B10: LDPE | C10: 5.67E-10

Sheet 4.1.Regio_param
B2: Regionalization parameters
A4: regions | B4: CONTINENTAL SCALE | U4: GLOBAL SCALE
A5: parameter | B5: area_land_C | C5: area_sea_C | D5: areafrac_rw_C | E5: areafrac_lw_C | F5: areafrac_nat_soil_C | G5: areafrac_agr_soil_C | H5: fracsf_rw_C | I5: fracsf_lw_C | J5: temp_C | K5: wind_speed_C | L5: rain_rate_C | M5: depth_rw_C | N5: depth_lw_C | O5: depth_sw_C | P5: frac_runoff_rw_C | Q5: frac_runoff_lw_C | R5: frac_infiltr_C | S5: soil_ero_C | T5: irrig_C | U5: area_land_G | V5: area_sea_G | W5: areafrac_rw_G | X5: areafrac_lw_G | Y5: areafrac_nat_soil_G | Z5: areafrac_agr_soil_G | AA5: fracsf_rw_G | AB5: fracsf_lw_G | AC5: temp_G | AD5: wind_speed_G | AE5: rain_rate_G | AF5: depth_rw_G | AG5: depth_lw_G | AH5: depth_sw_G | AI5: frac_runoff_rw_G | AJ5: frac_runoff_lw_G | AK5: frac_infiltr_G | AL5: soil_ero_G | AM5: irrig_G
A6: description | B6: area of land | C6: area of sea | D6: fraction of land area allocated to river | E6: fraction of land area allocated to lake | F6: fraction of land area allocated to natural soil | G6: fraction of land area allocated to agricultural soil | H6: fraction of surface water allocated to river | I6: fraction of surface water allocated to lake | J6: temperature | K6: wind speed | L6: rain rate | M6: depth river water | N6: depth lake water | O6: depth sea water | P6: fraction runoff to river | Q6: fraction runoff to lake | R6: fraction infiltration | S6: soil erosion | T6: irrigation | U6: area of land | V6: area of sea | W6: fraction of land area allocated to river | X6: fraction of land area allocated to lake | Y6: fraction of land area allocated to natural soil | Z6: fraction of land area allocated to agricultural soil | AA6: fraction of surface water allocated to river | AB6: fraction of surface water allocated to lake | AC6: temperature | AD6: wind speed | AE6: rain rate | AF6: depth river water | AG6: depth lake water | AH6: depth sea water | AI6: fraction runoff to river | AJ6: fraction runoff to lake | AK6: fraction infiltration | AL6: soil erosion | AM6: irrigation
A7: unit | B7: [m2] | C7: [m2] | D7: - | E7: - | F7: - | G7: - | H7: - | I7: - | J7: K | K7: [m*s-1] | L7: [m*s-1] | M7: [m] | N7: [m] | O7: [m] | P7: - | Q7: - | R7: - | S7: [m*s-1] | T7: [m3] | U7: [m2] | V7: [m2] | W7: - | X7: - | Y7: - | Z7: - | AA7: - | AB7: - | AC7: K | AD7: [m*s-1] | AE7: [m*s-1] | AF7: [m] | AG7: [m] | AH7: [m] | AI7: - | AJ7: - | AK7: - | AL7: [m*s-1] | AM7: [m3]
A8: source | B8: USEtox | C8: USEtox | D8: Calculated with HydroATLAS | E8: Calculated with HydroATLAS | F8: USEtox | G8: USEtox | H8: Calculated with HydroATLAS | I8: Calculated with HydroATLAS | J8: USEtox | K8: USEtox | L8: USEtox | M8: Calculated with HydroATLAS | N8: Calculated with HydroATLAS | O8: USEtox | P8: Fraction runoff in USEtox * Fraction of surface water allocated to river | Q8: Fraction runoff in USEtox * Fraction of surface water allocated to lake | R8: USEtox | S8: USEtox | T8: USEtox | U8: USEtox | V8: USEtox | W8: Calculated with HydroATLAS | X8: Calculated with HydroATLAS | Y8: USEtox | Z8: USEtox | AA8: Calculated with HydroATLAS | AB8: Calculated with HydroATLAS | AC8: USEtox | AD8: USEtox | AE8: USEtox | AF8: Calculated with HydroATLAS | AG8: Calculated with HydroATLAS | AH8: USEtox | AI8: Fraction runoff in USEtox * Fraction of surface water allocated to river | AJ8: Fraction runoff in USEtox * Fraction of surface water allocated to lake | AK8: USEtox | AL8: USEtox | AM8: USEtox
A9: North America | B9: 1.45E+13 | C9: 1.837407378e+12 | D9: 3.43E-03 | E9: 8.32E-02 | F9: 6.31E-01 | G9: 2.82E-01 | H9: 3.96E-02 | I9: 9.60E-01 | J9: 285.15 | K9: 3.00 | L9: 2.24E-08 | M9: 2.4 | N9: 29.5 | O9: 100.0 | P9: 0.01 | Q9: 0.35 | R9: 0.27 | S9: 9.51E-13 | T9: 1.97E+11 | U9: 1.24E+14 | V9: 3.62E+14 | W9: 3.73E-03 | X9: 2.36E-02 | Y9: 6.09E-01 | Z9: 3.64E-01 | AA9: 1.36E-01 | AB9: 8.64E-01 | AC9: 285.15 | AD9: 3.0 | AE9: 2.22E-08 | AF9: 3.3 | AG9: 90.8 | AH9: 3682.0 | AI9: 3.40E-02 | AJ9: 2.16E-01 | AK9: 0.25 | AL9: 9.51E-13 | AM9: 2.72E+12
A10: Latin America | B10: 2.09E+13 | C10: 2.972896722e+12 | D10: 6.45E-03 | E10: 1.27E-02 | F10: 6.54E-01 | G10: 3.27E-01 | H10: 3.37E-01 | I10: 6.63E-01 | J10: 285.15 | K10: 3.00 | L10: 5.11E-08 | M10: 4.4 | N10: 25.7 | O10: 100.0 | P10: 0.13 | Q10: 0.25 | R10: 0.27 | S10: 9.51E-13 | T10: 2.33E+11 | U10: 1.18E+14 | V10: 3.61E+14 | W10: 2.76E-03 | X10: 3.34E-02 | Y10: 6.03E-01 | Z10: 3.61E-01 | AA10: 7.64E-02 | AB10: 9.24E-01 | AC10: 285.15 | AD10: 3.0 | AE10: 2.22E-08 | AF10: 2.7 | AG10: 66.5 | AH10: 3682.0 | AI10: 1.91E-02 | AJ10: 2.31E-01 | AK10: 0.25 | AL10: 9.51E-13 | AM10: 2.72E+12
A11: Europe | B11: 8.57E+12 | C11: 1.700186862e+12 | D11: 5.01E-03 | E11: 2.55E-02 | F11: 5.85E-01 | G11: 3.85E-01 | H11: 1.64E-01 | I11: 8.36E-01 | J11: 285.15 | K11: 3.00 | L11: 1.75E-08 | M11: 1.9 | N11: 26.9 | O11: 100.0 | P11: 0.03 | Q11: 0.14 | R11: 0.27 | S11: 9.51E-13 | T11: 1.15E+11 | U11: 1.30E+14 | V11: 3.62E+14 | W11: 3.20E-03 | X11: 3.06E-02 | Y11: 6.13E-01 | Z11: 3.54E-01 | AA11: 9.49E-02 | AB11: 9.05E-01 | AC11: 285.15 | AD11: 3.0 | AE11: 2.22E-08 | AF11: 3.2 | AG11: 65.1 | AH11: 3682.0 | AI11: 2.37E-02 | AJ11: 2.26E-01 | AK11: 0.25 | AL11: 9.51E-13 | AM11: 2.72E+12
A12: Africa & Middle East | B12: 3.43E+13 | C12: 1.590401121e+12 | D12: 1.31E-04 | E12: 1.39E-02 | F12: 5.88E-01 | G12: 3.97E-01 | H12: 9.32E-03 | I12: 9.91E-01 | J12: 285.15 | K12: 3.00 | L12: 2.09E-08 | M12: 2.5 | N12: 115.9 | O12: 100.0 | P12: 0.00 | Q12: 0.18 | R12: 0.27 | S12: 9.51E-13 | T12: 2.72E+11 | U12: 1.04E+14 | V12: 3.62E+14 | W12: 4.20E-03 | X12: 3.58E-02 | Y12: 6.18E-01 | Z12: 3.42E-01 | AA12: 1.05E-01 | AB12: 8.95E-01 | AC12: 285.15 | AD12: 3.0 | AE12: 2.22E-08 | AF12: 3.2 | AG12: 58.8 | AH12: 3682.0 | AI12: 2.62E-02 | AJ12: 2.24E-01 | AK12: 0.25 | AL12: 9.51E-13 | AM12: 2.72E+12
A13: Central Asia | B13: 1.69E+13 | C13: 7.362956875e+11 | D13: 2.25E-03 | E13: 2.73E-02 | F13: 5.21E-01 | G13: 4.49E-01 | H13: 7.59E-02 | I13: 9.24E-01 | J13: 285.15 | K13: 3.00 | L13: 6.90E-09 | M13: 2.2 | N13: 33.1 | O13: 100.0 | P13: 0.04 | Q13: 0.43 | R13: 0.27 | S13: 9.51E-13 | T13: 2.25E+11 | U13: 1.22E+14 | V13: 3.63E+14 | W13: 3.34E-03 | X13: 3.08E-02 | Y13: 6.23E-01 | Z13: 3.42E-01 | AA13: 9.78E-02 | AB13: 9.02E-01 | AC13: 285.15 | AD13: 3.0 | AE13: 2.22E-08 | AF13: 3.2 | AG13: 65.9 | AH13: 3682.0 | AI13: 2.44E-02 | AJ13: 2.26E-01 | AK13: 0.25 | AL13: 9.51E-13 | AM13: 2.72E+12
A14: Southeast Asia | B14: 1.69E+13 | C14: 5.337404627e+12 | D14: 1.23E-02 | E14: 2.69E-02 | F14: 4.97E-01 | G14: 4.63E-01 | H14: 3.15E-01 | I14: 6.85E-01 | J14: 285.15 | K14: 3.00 | L14: 4.81E-08 | M14: 3.3 | N14: 17.4 | O14: 100.0 | P14: 0.08 | Q14: 0.18 | R14: 0.27 | S14: 9.51E-13 | T14: 1.67E+12 | U14: 1.22E+14 | V14: 3.59E+14 | W14: 2.67E-03 | X14: 3.01E-02 | Y14: 6.27E-01 | Z14: 3.41E-01 | AA14: 8.14E-02 | AB14: 9.19E-01 | AC14: 285.15 | AD14: 3.0 | AE14: 2.22E-08 | AF14: 3.2 | AG14: 66.6 | AH14: 3682.0 | AI14: 2.03E-02 | AJ14: 2.30E-01 | AK14: 0.25 | AL14: 9.51E-13 | AM14: 2.72E+12
A15: Northern regions | B15: 1.83E+13 | C15: 5.624861906e+12 | D15: 4.69E-03 | E15: 5.19E-02 | F15: 8.21E-01 | G15: 1.22E-01 | H15: 8.29E-02 | I15: 9.17E-01 | J15: 285.15 | K15: 3.00 | L15: 1.55E-08 | M15: 2.9 | N15: 131.9 | O15: 100.0 | P15: 0.03 | Q15: 0.33 | R15: 0.27 | S15: 9.51E-13 | T15: 9.69E+08 | U15: 1.20E+14 | V15: 3.58E+14 | W15: 3.06E-03 | X15: 2.70E-02 | Y15: 5.79E-01 | Z15: 3.91E-01 | AA15: 1.02E-01 | AB15: 8.98E-01 | AC15: 285.15 | AD15: 3.0 | AE15: 2.22E-08 | AF15: 3.3 | AG15: 39.1 | AH15: 3682.0 | AI15: 2.54E-02 | AJ15: 2.25E-01 | AK15: 0.25 | AL15: 9.51E-13 | AM15: 2.72E+12
A16: Oceania | B16: 8.12E+12 | C16: 2.240568531e+12 | D16: 9.00E-04 | E16: 5.85E-03 | F16: 5.35E-01 | G16: 4.58E-01 | H16: 1.33E-01 | I16: 8.67E-01 | J16: 285.15 | K16: 3.00 | L16: 4.11E-08 | M16: 1.0 | N16: 8.8 | O16: 100.0 | P16: 0.03 | Q16: 0.16 | R16: 0.27 | S16: 9.51E-13 | T16: 1.06E+10 | U16: 1.30E+14 | V16: 3.62E+14 | W16: 3.38E-03 | X16: 3.19E-02 | Y16: 6.16E-01 | Z16: 3.49E-01 | AA16: 9.59E-02 | AB16: 9.04E-01 | AC16: 285.15 | AD16: 3.0 | AE16: 2.22E-08 | AF16: 3.2 | AG16: 65.3 | AH16: 3682.0 | AI16: 2.40E-02 | AJ16: 2.26E-01 | AK16: 0.25 | AL16: 9.51E-13 | AM16: 2.72E+12

Sheet 4.2.Calc_regio_depth_surface
B2: Calculations of regionalized depth and surface area for lake and river
B4: Data calculated with HydroATLAS | D4: (Lehner et al., 2022) (Linke et al., 2019)
B6: Continental landscape:
C8: Lake water | E8: River water | G8: Fraction of suface water | I8: Fraction of land | K8: fraction of total surface water (USEtox)
B9: Region | C9: Depth (m) | D9: Surface area in HydroLake (km2) | E9: Depth (m) | F9: Surface area in HydroRiver (km2) | G9: Lake water | H9: River water | I9: Lake water | J9: River water
B10: North America | C10: 29.5 | D10: 1.27E+06 | E10: 2.4 | F10: 5.24E+04 | G10: =D10/(D10+F10) -> 96.0% | H10: =F10/(F10+D10) -> 4.0% | I10: =G10*$K10 -> 8.3% | J10: 0.3% | K10: 8.660%
B11: Latin America | C11: 25.7 | D11: 1.67E+05 | E11: 4.4 | F11: 8.50E+04 | G11: 66.3% | H11: 33.7% | I11: 1.3% | J11: 0.6% | K11: 1.913%
B12: Europe | C12: 26.9 | D12: 7.05E+04 | E12: 1.9 | F12: 1.39E+04 | G12: 83.6% | H12: 16.4% | I12: 2.5% | J12: 0.5% | K12: 3.047%
B13: Africa+Middle East | C13: 115.9 | D13: 2.75E+05 | E13: 2.5 | F13: 2.59E+03 | G13: 99.1% | H13: 0.9% | I13: 1.4% | J13: 0.0% | K13: 1.403%
B14: Central Asia | C14: 33.1 | D14: 1.49E+05 | E14: 2.2 | F14: 1.23E+04 | G14: 92.4% | H14: 7.6% | I14: 2.7% | J14: 0.2% | K14: 2.958%
B15: Southeast Asia | C15: 17.4 | D15: 1.46E+05 | E15: 3.3 | F15: 6.70E+04 | G15: 68.5% | H15: 31.5% | I15: 2.7% | J15: 1.2% | K15: 3.918%
B16: Northern regions | C16: 131.9 | D16: 7.91E+05 | E16: 2.9 | F16: 7.14E+04 | G16: 91.7% | H16: 8.3% | I16: 5.2% | J16: 0.5% | K16: 5.655%
B17: Oceania | C17: 8.8 | D17: 5.66E+04 | E17: 1.0 | F17: 8.71E+03 | G17: 86.7% | H17: 13.3% | I17: 0.6% | J17: 0.1% | K17: 0.675%
B18: World | D18: =SUM(D10:D17) -> 2.93E+06 | F18: =SUM(F10:F17) -> 3.13E+05 | G18: 90.3% | H18: 9.7%
B20: Global landscape:
K21: Intermediate columns
C22: Lake water | E22: River water | G22: Fraction of suface water | I22: Fraction of land | K22: Depth * surface area
B23: Region | C23: Depth (m) | D23: Surface area (km2) | E23: Depth (m) | F23: Surface area (km2) | G23: Lake water | H23: River water | I23: Lake water | J23: River water | K23: Lake water | L23: River water | M23: Fraction of total surface water (USEtox)
B24: North America | C24: =(SUM($K$24:$K$31)-K24)/(SUM($D$10:$D$17)-D10) -> 90.8 | D24: =(SUM($D$10:$D$17)-D10) -> 1.66E+06 | E24: =(SUM($L$24:$L$31)-L24)/(SUM($F$10:$F$17)-F10) -> 3.3 | F24: =SUM($F$10:$F$17)-F10 -> 2.61E+05 | G24: =D24/(D24+F24) -> 86.4% | H24: =F24/(D24+F24) -> 13.6% | I24: =G24*M24 -> 2.4% | J24: =H24*M24 -> 0.4% | K24: =C10*D10 -> 3.75E+07 | L24: =E10*F10 -> 1.24E+05 | M24: 2.74%
B25: Latin America | C25: 66.5 | D25: 2.76E+06 | E25: 2.7 | F25: 2.28E+05 | G25: =D25/(D25+F25) -> 92.4% | H25: =F25/(D25+F25) -> 7.6% | I25: =G25*M25 -> 3.3% | J25: =H25*M25 -> 0.3% | K25: 4.30E+06 | L25: 3.73E+05 | M25: 3.61%
B26: Europe | C26: 65.1 | D26: 2.86E+06 | E26: 3.2 | F26: 2.99E+05 | G26: 90.5% | H26: 9.5% | I26: 3.1% | J26: 0.3% | K26: 1.89E+06 | L26: 2.70E+04 | M26: 3.38%
B27: Africa+Middle East | C27: 58.8 | D27: 2.65E+06 | E27: 3.2 | F27: 3.11E+05 | G27: 89.5% | H27: 10.5% | I27: 3.6% | J27: 0.4% | K27: 3.19E+07 | L27: 6.42E+03 | M27: 4.00%
B28: Central Asia | C28: 65.9 | D28: 2.78E+06 | E28: 3.2 | F28: 3.01E+05 | G28: 90.2% | H28: 9.8% | I28: 3.1% | J28: 0.3% | K28: 4.95E+06 | L28: 2.73E+04 | M28: 3.41%
B29: Southeast Asia | C29: 66.6 | D29: 2.78E+06 | E29: 3.2 | F29: 2.46E+05 | G29: 91.9% | H29: 8.1% | I29: 3.0% | J29: 0.3% | K29: 2.54E+06 | L29: 2.22E+05 | M29: 3.28%
B30: Northern regions | C30: 39.1 | D30: 2.14E+06 | E30: 3.3 | F30: 2.42E+05 | G30: 89.8% | H30: 10.2% | I30: 2.7% | J30: 0.3% | K30: 1.04E+08 | L30: 2.09E+05 | M30: 3.01%
B31: Oceania | C31: 65.3 | D31: 2.87E+06 | E31: 3.2 | F31: 3.05E+05 | G31: 90.4% | H31: 9.6% | I31: 3.2% | J31: 0.3% | K31: 4.99E+05 | L31: 8.76E+03 | M31: 3.52%

Sheet 5.1.Poly_parameters
B2: Polymer parameters used
B4: polymer type | C4: average density [kg.m-3] | D4: shape factor [-] | E4: SSDR_w [m.s-1] | F4: SSDR_sed [m.s-1] | G4: SSDR_soil [m.s-1] | H4: SSA_corr_factor [-] | I4: sed_min_sw [s-1]
B5: EPS | C5: 36.5 | D5: 4 | E5: 9.51E-16 | F5: 9.512937595e-16 | G5: 9.512937595e-16 | H5: 13 | I5: 8.35E-13
B6: HDPE | C6: 955 | D6: 4 | E6: 3.17E-15 | F6: 3.170979198e-15 | G6: 3.615472555e-14 | H6: 1 | I6: 5.67E-10
B7: LDPE | C7: 925 | D7: 4 | E7: 6.34E-15 | F7: 2.232783707e-14 | G7: 4.932885967e-13 | H7: 1 | I7: 5.67E-10
B8: PA_Nylon | C8: 1240 | D8: 4 | E8: 1.01e-13 | F8: 1.014713343e-13 | G8: 1.014713343e-13 | H8: 1 | I8: -
B9: PET | C9: 1350 | D9: 4 | E9: 9.51E-15 | F9: 9.512937595e-15 | G9: 1.877851632e-14 | H9: 1 | I9: -
B10: PHA | C10: 1220 | D10: 4 | E10: 3.57E-12 | F10: 1.958815774e-13 | G10: 3.788510229e-11 | H10: 1 | I10: -
B11: PLA | C11: 1240 | D11: 4 | E11: 2.85E-15 | F11: 3.488077118e-17 | G11: 3.838542265e-12 | H11: 1 | I11: -
B12: PP | C12: 885 | D12: 4 | E12: 3.90E-14 | F12: 2.853881279e-15 | G12: 2.196918833e-14 | H12: 1 | I12: 5.67E-10
B13: PS | C13: 1040 | D13: 4 | E13: 9.51E-16 | F13: 9.512937595e-16 | G13: 9.512937595e-16 | H13: 1 | I13: -
B14: PVC | C14: 1380 | D14: 4 | E14: 3.17E-16 | F14: 3.170979198e-16 | G14: 3.170979198e-16 | H14: 1 | I14: -
B15: TRWP | C15: 1450 | D15: 4 | E15: 6.66E-15 | F15: 6.659056317e-15 | G15: 6.659056317e-15 | H15: 1 | I15: -
B16: starch_blend | C16: 1250 | D16: 4 | E16: 3.21E-12 | F16: 3.21188483e-12 | G16: 1.048256402e-11 | H16: 1 | I16: -
B17: PBAT | C17: 1260 | D17: 4 | E17: 3.73E-13 | F17: 3.726831495e-13 | G17: 1.719360948e-13 | H17: 1 | I17: -
B18: PAN | C18: 1184 | D18: 4 | E18: 3.17E-17 | F18: 3.170979198e-17 | G18: 3.170979198e-17 | H18: 1 | I18: -

Sheet 6.References
B2: References
B4: Chamas, A., Moon, H., Zheng, J., Qiu, Y., Tabassum, T., Jang, J. H., Abu-Omar, M., Scott, S. L., & Suh, S. (2020). Degradation Rates of Plastics in the Environment. ACS Sustainable Chemistry & Engineering, 8(9), 3494‑3511. https://doi.org/10.1021/acssuschemeng.9b06635
B5: Corella-Puertas, E., Hajjar, C., Lavoie, J., & Boulay, A.-M. (2023). MarILCA characterization factors for microplastic impacts in life cycle assessment : Physical effects on biota from emissions to aquatic environments. Journal of Cleaner Production, 418, 138197. https://doi.org/10.1016/j.jclepro.2023.138197
B6: Kounina, A., Margni, M., Shaked, S., Bulle, C., & Jolliet, O. (2014). Spatial analysis of toxic emissions in LCA : A sub-continental nested USEtox model with freshwater archetypes. Environment International, 69, 67‑89. https://doi.org/10.1016/j.envint.2014.04.004
B7: Lehner, B., Messager, M. L., Korver, M. C., & Linke, S. (2022). Global hydro-environmental lake characteristics at high spatial resolution. Scientific Data, 9(1), 351. https://doi.org/10.1038/s41597-022-01425-z
B8: Linke, S., Lehner, B., Ouellet Dallaire, C., Ariwi, J., Grill, G., Anand, M., Beames, P., Burchard-Levine, V., Maxwell, S., Moidu, H., Tan, F., & Thieme, M. (2019). Global hydro-environmental sub-basin and river reach characteristics at high spatial resolution. Scientific Data, 6(1), 283. https://doi.org/10.1038/s41597-019-0300-6
B9: Maga, D., Galafton, C., Blömer, J., Thonemann, N., Özdamar, A., & Bertling, J. (2022). Methodology to address potential impacts of plastic emissions in life cycle assessment. The International Journal of Life Cycle Assessment, 27(3), 469‑491. https://doi.org/10.1007/s11367-022-02040-1
B10: Rosenbaum, R. K., Bachmann, T. M., Gold, L. S., Huijbregts, M. A. J., Jolliet, O., Juraske, R., Koehler, A., Larsen, H. F., MacLeod, M., Margni, M., McKone, T. E., Payet, J., Schuhmacher, M., Van De Meent, D., & Hauschild, M. Z. (2008). USEtox—the UNEP-SETAC toxicity model : Recommended characterisation factors for human toxicity and freshwater ecotoxicity in life cycle impact assessment. The International Journal of Life Cycle Assessment, 13(7), 532‑546. https://doi.org/10.1007/s11367-008-0038-4
